Cogmind - Beta 10.2 --- EXPLORER MODE // 2021.02.23 @ 11:40:35 // Halloween2020/ForbiddenLore Player: PYNTER Result: Destroyed by as-61458 with Assembled Rifle Performance ------------- Evolutions (0) 0 Regions Visited (2) 400 Robots Destroyed (15) 75 Value Destroyed (443) 443 Prototype IDs (0) 0 Alien Tech Used (0) 0 Bonus (0) 0 TOTAL SCORE: 918 Bonus ------- None Cogmind --------- Core Integrity 0/250 Matter 292/300 Energy 81/100 System Corruption 5% Temperature Cool (0) Movement Rolling (90) Location -10/Mines Parts ------- > --- POWER (1) -------- (None) > --- PROPULSION (2) --- Armored Wheel Armored Wheel > --- UTILITY (3) ------ Large Storage Unit Visual Processing Unit Targeting Computer > --- WEAPON (2) ------- Welding Torch > --- INVENTORY (10) --- Ion Engine Armored Wheel Large Storage Unit Light Armor Plating Tractor Beam Trap Extractor Peak State ------------ > --- POWER ------------ Light Nuclear Core > --- PROPULSION ------- Armored Wheel Armored Wheel > --- UTILITY ---------- Medium Storage Unit Targeting Computer Light Armor Plating > --- WEAPON ----------- Shotgun Shotgun > --- INVENTORY -------- Light Ion Engine Armored Wheel Armored Wheel Targeting Computer Propulsion Shielding Tractor Beam Medium Laser Assault Rifle [Rating: 15] Favorites ----------- Power Light Nuclear Core Engine Light Ion Engine Power Core Light Nuclear Core Propulsion Armored Wheel Leg Aluminum Leg Wheel Armored Wheel Utility Targeting Computer Storage Medium Storage Unit Processor Targeting Computer Protection Light Armor Plating Weapon Assault Rifle Energy Gun Medium Laser Ballistic Gun Assault Rifle Special Weapon Welding Torch Build | -11 -10 -10 ------- Run | Scr Mat Min Slots Evolved 1 | . 1 . Power . | . . . Propulsion . | . . . Utility 1 | . 1 . Weapon . | . . . Parts Attached 32 | 7 20 5 Power 6 | 1 5 . Engine 3 | 1 2 . Core 3 | . 3 . Reactor . | . . . Propulsion 9 | 2 6 1 Treads . | . . . Leg 2 | 2 . . Wheel 7 | . 6 1 Hover . | . . . Flight . | . . . Utility 8 | 2 4 2 Device . | . . . Storage 3 | 1 2 . Processor 3 | 1 . 2 Hackware . | . . . Protection 2 | . 2 . Artifact . | . . . Weapon 9 | 2 5 2 Energy Gun 2 | . 2 . Energy Cannon . | . . . Ballistic Gun 5 | 2 3 . Ballistic Cannon . | . . . Launcher . | . . . Special Weapon 2 | . . 2 Impact Weapon . | . . . Slashing Weapon . | . . . Piercing Weapon . | . . . Special Melee Weapon . | . . . Unidentified Prototypes . | . . . Parts Lost 7 | . . 7 Power 1 | . . 1 Propulsion 1 | . . 1 Utility 2 | . . 2 Weapon 3 | . . 3 Highest Loss Streak 5 | . . 5 Average Slot Usage (%) 96 | . 99 73 Engine 3 | . 4 . Core 7 | . 7 10 Leg 4 | . 5 . Wheel 19 | . 19 21 Storage 12 | . 12 12 Processor 12 | . 12 14 Protection 11 | . 12 3 Energy Gun 4 | . 5 4 Ballistic Gun 17 | . 19 2 Naked Turns . | . . . Heaviest Build 30 | 15 30 28 Greatest Support 24 | 20 24 24 Greatest Overweight (x) 2 | . 2 1 Average Overweight (x) . | . . . Largest Inventory Capacity 10 | 8 10 10 Average Capacity 8 | 7 8 10 Most Carried 10 | 7 10 10 Average Carried 8 | 6 8 7 Final Capacity 10 | 8 10 10 Final Carried 10 | 7 10 6 Class Distribution -------------------- 100% | Hacker-Mutant Dominant Class ---------------- Hacker-Mutant | -10/Materials Hacker-Mutant | -10/Mines Resources | -11 -10 -10 ----------- Run | Scr Mat Min Matter Collected 737 | 211 427 99 Remotely . | . . . Salvage Created 498 | . 486 12 Parts 33 | . 33 . Haulers Intercepted . | . . . Recyclers Shooed . | . . . Parts Field Recycled . | . . . Retrieved Matter . | . . . Parts Self-Destructed . | . . . Prevented . | . . . Kills | -11 -10 -10 ------- Run | Scr Mat Min Combat Hostiles Destroyed 14 | . 12 2 Guns 13 | . 12 1 Classes Destroyed 6 | . 4 2 Worker 1 | . 1 . Watcher 1 | . 1 . Swarmer 2 | . 2 . Grunt 10 | . 10 . Demolisher 1 | . . 1 Assembled 1 | . . 1 Best Kill Streak 4 | . 4 2 Combat Bots Only 3 | . 3 2 Max Kills in Single Turn 1 | . 1 1 Gunslinging . | . . . Exploded . | . . . Melee . | . . . Uniques/NPCs Destroyed . | . . . Combat | -11 -10 -10 -------- Run | Scr Mat Min Damage Taken 1061 | . 348 713 Core 253 | . 60 193 Absorbed by Shields . | . . . Core Remaining (%) 100 | 100 . . Volleys Fired 50 | . 40 10 Largest 2 | . 2 2 Hottest 70 | . 70 70 Shots Fired 93 | . 80 13 Gun 89 | . 80 9 Cannon . | . . . Launcher . | . . . Special 4 | . . 4 Kinetic 66 | . 63 3 Thermal 27 | . 17 10 Explosive . | . . . Electromagnetic . | . . . Robot Hit Streak 37 | . 35 37 Robot Miss Streak 4 | . 4 1 Penetration Max . | . . . Secondary Targets 2 | . 1 1 Max Gunslinging Chain 1 | . 1 1 Shots Hit Robots 81 | . 69 12 Core Hits 31 | . 27 4 Critical Hits . | . . . Critical Kills . | . . . Critical Parts Destroyed . | . . . Melee Attacks . | . . . Impact . | . . . Slashing . | . . . Piercing . | . . . Sneak Attacks . | . . . Combat Hostiles . | . . . Follow-up Attacks . | . . . Damage Inflicted 1094 | . 978 116 Guns 1068 | . 978 90 Cannons . | . . . Explosions . | . . . Melee . | . . . Ramming 14 | . . 14 Kinetic 792 | . 763 29 Thermal 288 | . 215 73 Explosive . | . . . Electromagnetic . | . . . Impact . | . . . Slashing . | . . . Piercing . | . . . Highest Corruption 5 | . 2 5 Average Corruption 2 | . 1 4 Corruption Purged . | . . . Effects 8 | . 5 3 Message Errors 2 | . 1 1 Energy Discharges 2 | . 1 1 Data Loss (minor) 1 | . 1 . Data Loss (major) 1 | . . 1 Targeting Errors 2 | . 2 . Overload Shots . | . . . Overflow Damage . | . . . Projectiles . | . . . Explosions . | . . . Melee . | . . . Knockbacks . | . . . Impact . | . . . Kinetic . | . . . Secondary . | . . . Self-Inflicted Damage 6 | . . 6 Shots . | . . . Rammed 3 | . . 3 Targets Rammed 3 | . . 3 Kicked . | . . . Crushed . | . . . Highest Temperature 348 | . 348 72 Average Temperature 109 | . 128 23 Received Heat Transfer 410 | . 270 140 Effects 2 | . 2 . Energy Bleed 1 | . 1 . Matter Decay 1 | . 1 . Siege Activations . | . . . Robots Corrupted . | . . . Combat Hostiles . | . . . Parts Fried . | . . . Impact Corruptions . | . . . Robots Melted 1 | . . 1 Combat Hostiles 1 | . . 1 Parts Melted 1 | . 1 . Heat Transferred 914 | . 629 285 Parts Sabotaged . | . . . Parts Stolen . | . . . Parts Stripped . | . . . Power Chain Reactions . | . . . Missiles Intercepted . | . . . Alert | -11 -10 -10 ------- Run | Scr Mat Min Peak Influence 200 | . 200 20 Initial . | . . . Average 39 | . 61 5 Maximum Alert Level 1 | . 1 . Low Security (%) 96 | 100 94 100 Level 1 3 | . 5 . Level 2 . | . . . Level 3 . | . . . Level 4 . | . . . Level 5 . | . . . High Security . | . . . Max Security . | . . . Squads Dispatched 2 | . 2 . Investigation 2 | . 2 . Extermination . | . . . Reinforcement . | . . . Assault . | . . . Garrison . | . . . Intercept . | . . . Construction Impeded . | . . . Haulers Reinforced . | . . . Stealth | -11 -10 -10 --------- Run | Scr Mat Min Distress Signals . | . . . Communications Jammed . | . . . Distress Signals . | . . . Times Spotted 35 | . 17 18 Peak Tracking Total 12 | . 3 12 Tactical Retreats 5 | . 3 2 Traps | -11 -10 -10 ------- Run | Scr Mat Min Traps Triggered 4 | . 4 . Indirectly . | . . . Trap Hack Attempts . | . . . Triggered . | . . . Disarmed . | . . . Reprogrammed . | . . . Reused . | . . . Traps Extracted . | . . . Installed . | . . . Triggered . | . . . Machines | -11 -10 -10 ---------- Run | Scr Mat Min Machines Disabled . | . . . Max in Single Turn . | . . . Machines Sabotaged . | . . . Garrisons Compromised . | . . . Overloaded Fab Kills . | . . . Fab Network Shutdowns . | . . . Hacking | -11 -10 -10 --------- Run | Scr Mat Min Machines Accessed 6 | . 6 . Terminals 4 | . 4 . Fabricators . | . . . Repair Stations 1 | . 1 . Recycling Units 1 | . 1 . Scanalyzers . | . . . Garrison Access . | . . . Total Hacks 26 | . 26 . Successful 23 | . 23 . Failed 3 | . 3 . Catastrophic . | . . . Database Lockouts . | . . . Manual . | . . . Terminals 19 | . 19 . Fabricators . | . . . Repair Stations 5 | . 5 . Recycling Units 2 | . 2 . Scanalyzers . | . . . Garrison Access . | . . . Terminal Hacks 16 | . 16 . Record 9 | . 9 . Level Access Points 1 | . 1 . Branch Access Points 1 | . 1 . Emergency Access Points 1 | . 1 . Alert Level 1 | . 1 . Unreport Threat 1 | . 1 . Locate Traps 2 | . 2 . Fabricator Hacks . | . . . Repair Station Hacks 5 | . 5 . Scan Component 3 | . 3 . Repair 2 | . 2 . Recycling Unit Hacks 2 | . 2 . Retrieve Matter 1 | . 1 . Retrieve Components 1 | . 1 . Scanalyzer . | . . . Garrison Access Hacks . | . . . Unauthorized Hacks . | . . . Terminals . | . . . Fabricators . | . . . Repair Stations . | . . . Recycling Units . | . . . Scanalyzers . | . . . Garrison Access . | . . . Data Cores Recovered . | . . . Used . | . . . Hacking Detections 5 | . 5 . Full Trace Events 5 | . 5 . Feedback Events . | . . . Feedback Blocked . | . . . Robot Schematics Acquired . | . . . Robots Built . | . . . Matter . | . . . Time . | . . . Total Robot Build Rating . | . . . Part Schematics Acquired . | . . . Parts Built . | . . . Matter . | . . . Time . | . . . Total Part Build Rating . | . . . Parts Repaired 2 | . 2 . Time 64 | . 64 . Parts Recycled . | . . . Recycled Matter . | . . . Retrieved Matter . | . . . Retrieved Components . | . . . Parts Scanalyzed . | . . . Part Schematics Acquired . | . . . Parts Damaged . | . . . Bothacking | -11 -10 -10 ------------ Run | Scr Mat Min Used RIF Installer . | . . . Robots Hacked . | . . . Non-combat . | . . . Combat . | . . . Robot Hacks Applied . | . . . Relay Couplers Released . | . . . Robots Rewired . | . . . Allies Hacked . | . . . Hacks Repelled . | . . . Allies | -11 -10 -10 -------- Run | Scr Mat Min Total Allies . | . . . Largest Group . | . . . Highest-Rated Group . | . . . Highest-Rated Ally . | . . . Total Orders . | . . . Ally Attacks . | . . . Total Damage . | . . . Kills . | . . . Allies Corrupted . | . . . Allies Melted . | . . . Intel | -11 -10 -10 ------- Run | Scr Mat Min Robot Analysis Total . | . . . Derelict Logs Recovered . | . . . Drone Launches . | . . . Drone Recoveries . | . . . Exploration | -11 -10 -10 ------------- Run | Scr Mat Min Turns Passed 1641 | 497 1026 118 Spaces Moved 817 | 75 657 85 Core 10 | 10 . . Treads . | . . . Legs 175 | 65 110 . Wheels 632 | . 547 85 Hover . | . . . Flight . | . . . Fastest Speed 50 | 50 90 90 Average Speed 100 | 110 100 94 Slowest Speed 150 | 120 150 100 Overloaded Moves . | . . . Propulsion Burnouts . | . . . Robots Hopped . | . . . Cave-ins Triggered . | . . . Exploration Rate (%) 33 | 6 73 21 Regions Visited 2 Branch Regions 1 Pre-discovered Areas . | . . . Known Exits Taken 2 | 1 1 . Unknown Exits Taken . | . . . Scrap Searched . | . . . Spaces Dug . | . . . Terrain Destroyed . | . . . Melee . | . . . Projectile . | . . . AOE . | . . . Terrain Rammed . | . . . Walls Destroyed . | . . . Machines Disabled . | . . . Actions | -11 -10 -10 --------- Run | Scr Mat Min Total 1539 | 485 946 108 Wait 602 | 397 200 5 Move 815 | 74 656 85 Hop . | . . . Pick Up 20 | 7 13 . Fast Attach 15 | 7 7 1 Attach 7 | . 3 4 Detach . | . . . Swap 10 | . 10 . Drop 17 | . 17 . Fire 50 | . 40 10 Melee . | . . . Ram 3 | . . 3 Kick . | . . . Crush . | . . . Escape Stasis . | . . . Rewire . | . . . Trap . | . . . Miscellaneous . | . . . Route ------- -11/Scrapyard -10/Materials (discovered 4 exits: *Mat x3 / *Min) -10/Mines (discovered 1 exit: *Mat) History --------- Turn | Location | Event 6 | -11/Scrapyard | Identified exit to Materials 6 | -11/Scrapyard | Discovered exit to Materials (range 15) 498 | -11/Scrapyard | Entered Materials 498 | -10/Materials | Evolved 1 slot: Utility x1 519 | -10/Materials | Build established: Hacker-Mutant 995 | -10/Materials | Identified exit to Materials 995 | -10/Materials | Discovered exit to Materials (range 10) 1124 | -10/Materials | Discovered exit to Materials (range 12) 1240 | -10/Materials | Identified exit to Mines 1462 | -10/Materials | Repaired Med. Laser 1501 | -10/Materials | Repaired Lgt. Nuclear Core 1524 | -10/Materials | Entered Mines 1532 | -10/Mines | Assembled infested the area 1560 | -10/Mines | Core integrity fell below 50% 1568 | -10/Mines | Discovered exit to Materials (range 13) 1592 | -10/Mines | Lost 5 parts (1n2u2w) 1622 | -10/Mines | Core integrity fell below 20% 1642 | -10/Mines | Destroyed by as-61458 with Assembled Rifle Last Messages --------------- 01566_ U-05 Engineer lays Concrete. 01568_ EXIT=FOUND: MATERIALS 01571_ U-05 Engineer lays Concrete. 01574_ K-01 Serf collects debris. 01601_ The unstable cave ceiling collapses. 01601_ K-01 Serf destroyed. 01602_ System corrupted: Substantial component data lost. 01603_ The unstable cave ceiling collapses. 01609_ R-06 Scavenger destroyed. 01614_ The unstable cave ceiling collapses. 01618_ Welding Torch destroyed. 01618_ Slammed into as-52452. 01620_ The unstable cave ceiling collapses. 01620_ Lgt. Nuclear Core destroyed. 01620_ Slammed into as-52452. 01623_ Acquired 16 matter. 01625_ Acquired Welding Torch. 01629_ Acquired 77 matter. 01634_ Acquired 6 matter. 01637_ System corrupted: Energy discharge (-32). Map ----- +----------------------------------------------------+ | | | | | | | | | ??????????????????????????????????????????????? | | ??????????????????????????????????????????????? | | ???????????????????????????????#####??????????# | | ?????????????????????????????## ##????????## | | ????????????????????????????## *%= ??##?????# | | ????????????????????????????# ! ?? #???### | | ????????????????????????????# ???# #??## | | ??????????????"????????????## ???# #### | | ?????????????% ?????????#### ????# ## | | ??????????????% ???????## < ?????# # | | ?????????????? %#?????## ####### # | | ?????????????? %%% #### ! = | | ????????????????#= =!! % | | ?????????????####=!?## ######## | | ?????????????? %*%%#### ##??????# | | ????????????????#!%==### a##???????#### ### | | ????????????????# ==a*## ##??????????####?? | | ?????????????????#%=a! =%= ##????????????????? | | ?????????????????#* ##?????????????????? | | ????????????????## a##??????????????????? | | ????????????????# ##???????????????????? | | ?????????# ##@ ##????????????????????? | | ?????????# ??####?????????????????????? | | ?????????## ?????????????????????????????? | | ???????????## ???????????????????????????????? | | ??????????????????????????????????????????????? | | ??????????????????????????????????????????????? | | ??????????????????????????????????????????????? | | ??????????????????????????????????????????????? | | ??????????????????????????????????????????????? | | ??????????????????????????????????????????????? | | ??????????????????????????????????????????????? | | ??????????????????????????????????????????????? | | ??????????????????????????????????????????????? | | ??????????????????????????????????????????????? | | ??????????????????????????????????????????????? | | ??????????????????????????????????????????????? | | ??????????????????????????????????????????????? | | ??????????????????????????????????????????????? | | ??????????????????????????????????????????????? | | ??????????????????????????????????????????????? | | ??????????????????????????????????????????????? | | ??????????????????????????????????????????????? | | ??????????????????????????????????????????????? | | ??????????????????????????????????????????????? | | ??????????????????????????????????????????????? | +----------------------------------------------------+ Best States ------------- Heat Dissipation 25 Energy Generation 14 Energy Capacity 250 Matter Stores 300 Matter Capacity 300 Sight Range 18 Terrain Scan Density 10 Armor Coverage 150 Resistance: KI 35 Resistance: TH 35 Resistance: EX 35 Resistance: EM 35 Resistance: I 35 Resistance: S 35 Resistance: P 35 Evasion (%) 50 Targeting Accuracy 5 Offensive Hacking 20 Item Schematics ----------------- None Robot Schematics ------------------ None Fabricated ------------ Nothing Alien Tech Used ----------------- None Achievements -------------- None Challenges ------------ None Game ------ Seed StormStealthLance Manual? 0 Play Time 00:19:57 Cumulative 14.6 hours Start 2021.02.23 @ 11:23:03 End 2021.02.23 @ 11:40:35 Sessions 1 Manual Loads 0 Difficulty Explorer Special Mode Halloween2020/ForbiddenLore Game No. 29 Rogue 11 Adventurer 15 Explorer 3 Win Type - Total 0 Types 0/0/0/0/0/0/0/0/0 Lore% 21 Gallery% 29 Achievement% 21 Wizard Run 0 Options --------- ASCII 0 Keyboard 1 Movement Numpad Keybinds 0 Fullscreen 1 Font 18/TerminusBold Map View 76x50 Tactical HUD 1 Map Filters NONE Filters NONE Steam 1 RUN: cd3be4b1-c6ce-441c-a074-8d5f9696e262